bitfinex/quotes_ETHUSD_20220106
["timestamp","ask_amount","ask_price","bid_price","bid_amount"]
[1641462435969,2.24669,3340.2,3339.4,0.03387546]
[1641462436171,1.22234046,3340.0,3339.5,0.00568423]
[1641462436571,1.97117046,3340.0,3339.5,0.00568423]
[1641462436771,1.49779,3340.2,3339.5,0.00568423]
[1641462437572,0.00113685,3340.7,3339.5,0.00568423]
[1641462437773,2.09043196,3340.3,3339.5,2.0362257]
[1641462437973,0.74878,3340.4,3339.5,2.0362257]
[1641462438173,0.74878,3340.4,3339.6,0.00511581]
[1641462438618,0.95734493,3340.3,3339.6,0.00511581]
[1641462438821,1.49786,3340.1,3339.5,0.00568423]
[1641462439117,0.74895,3339.7,3339.5,0.00568423]
[1641462439523,1.99449748,3339.6,3339.2,0.0073895]
[1641462439921,11.94913,3338.9,3338.8,0.0096632]
[1641462440119,0.5967,3338.9,3338.8,0.0096632]
[1641462440719,0.5967,3338.9,3338.8,1.24288219]
[1641462440917,0.5967,3338.9,3338.8,1.23321899]
[1641462441118,0.5967,3338.9,3338.8,1.24288219]
[1641462441319,0.95734493,3339.5,3338.8,0.0096632]
[1641462441518,1.49809,3339.6,3338.8,0.0096632]
[1641462441718,1.49809,3339.6,3338.3,0.01250531]
[1641462442371,1.2613774,3339.9,3339.1,1.83542733]
[1641462442573,1.2613774,3339.9,3339.5,0.0123534]
[1641462442769,1.2613774,3339.9,3339.6,1.19845724]
[1641462442968,1.2613774,3339.9,3339.6,1.20357305]
[1641462443169,1.68236101,3340.0,3339.7,0.00454739]
[1641462443567,1.68236101,3340.0,3339.1,0.7488774]
[1641462443969,1.68236101,3340.0,3339.2,0.0073895]
[1641462444170,1.94780033,3340.1,3339.3,1.96104004]
[1641462444371,2.43121101,3340.6,3339.4,1.09733233]
[1641462444571,0.74885,3340.3,3339.4,1.10358499]
[1641462444768,3.18006101,3340.6,3339.5,0.00568423]
[1641462444970,1.68236101,3340.6,3339.5,0.00568423]
[1641462445369,1.68236101,3340.6,3340.4,1.52642383]
[1641462445770,0.0116389,3340.5,3340.4,1.52642383]
[1641462446015,0.0116389,3340.5,3340.4,1.82642383]
[1641462446217,0.00113685,3340.7,3340.5,1.28050614]
[1641462446420,0.00113685,3340.7,3340.5,18.61193353]
[1641462446816,4.91621564,3341.8,3340.6,0.03101209]
[1641462447017,1.76061564,3341.8,3341.7,1.92423697]
[1641462447217,0.22261564,3341.8,3341.7,1.92423697]
[1641462447919,0.22261564,3341.8,3341.7,2.22423697]
[1641462447920,0.21303897,3341.8,3341.7,2.22423697]
[1641462448917,0.21303897,3341.8,3341.7,1.92423697]
[1641462449518,6.568e-05,3341.8,3341.2,18.07834]
[1641462449784,6.568e-05,3341.8,3341.7,17.33]
[1641462450183,0.00631834,3341.8,3341.7,17.66957742]
[1641462450383,1.68236101,3342.4,3341.7,17.66957742]
[1641462450683,0.00284211,3342.3,3341.9,17.33]
[1641462450884,4.18803577,3343.4,3341.9,17.33]
[1641462450885,1.68236101,3343.0,3341.9,17.33]
[1641462451081,1.68236101,3343.0,3341.9,0.3]
[1641462451280,1.68236101,3343.0,3342.0,0.00170527]
[1641462451281,1.64593086,3343.0,3342.0,0.00170527]
[1641462451482,0.00227369,3342.9,3342.0,0.00284212]
[1641462451684,0.00227369,3342.9,3341.9,0.25284212]
[1641462451881,0.00454739,3342.8,3341.8,1.88755466]
[1641462452082,0.00454739,3342.8,3342.2,2.08932831]
[1641462452281,0.00397897,3342.7,3342.2,2.08932831]
[1641462452683,0.00341054,3342.6,3342.2,2.08932831]
[1641462452883,0.00341054,3342.6,3341.8,1.13941196]
[1641462453085,0.00284212,3342.5,3341.8,1.13941196]
[1641462453388,0.0022737,3342.4,3341.8,1.13941196]
[1641462453830,0.00170527,3342.3,3341.8,1.13941196]
[1641462454031,0.00170527,3342.3,3341.8,1.43941196]
[1641462454227,0.00113685,3342.2,3341.8,0.3]
[1641462454628,0.0022737,3342.4,3341.4,17.63]
[1641462455029,0.00170527,3342.3,3341.5,0.00284211]
[1641462455429,0.00113685,3342.2,3341.7,1.81837631]
[1641462455628,0.00113685,3342.2,3341.7,1.36421742]
[1641462455828,2.09717739,3342.5,3341.7,1.31535426]
[1641462455829,0.0022737,3342.4,3341.7,1.31535426]
[1641462456231,0.00284211,3342.3,3341.4,17.33]
[1641462456631,1.72092022,3341.9,3341.5,0.00170527]
[1641462457033,0.356,3341.8,3341.5,0.00293124]
[1641462457270,0.356,3341.8,3341.5,0.00122597]
[1641462457471,0.356,3341.8,3341.6,0.00113685]
[1641462457670,1.14192022,3341.9,3341.6,3.685e-05]
[1641462457873,13.656,3341.8,3341.5,2.597e-05]
[1641462458170,4.34459664,3341.7,3341.5,2.597e-05]
[1641462458371,8.55,3341.5,3340.0,3.0447099]
[1641462458574,0.7488,3340.4,3340.0,3.0447099]
[1641462458771,1.4004,3340.4,3340.1,0.00852635]
[1641462459578,2.35988676,3340.3,3340.1,0.00852635]
[1641462461219,2.35988676,3340.3,3340.1,17.33852635]
[1641462461420,0.356,3340.9,3340.2,1.97336182]
[1641462461615,0.356,3340.9,3340.2,1.98131975]
[1641462461815,0.356,3340.9,3340.4,1.95095691]
[1641462462018,1.25283593,3341.2,3340.8,1.29288131]
[1641462462218,1.25283593,3341.2,3340.9,17.33]
[1641462462417,1.25283593,3341.2,3340.9,17.33397896]
[1641462462618,1.25283593,3341.2,3341.0,0.00341054]
[1641462462819,1.25283593,3341.3,3341.0,0.00341054]
[1641462463017,1.16299072,3341.3,3341.0,0.00341054]
[1641462463219,1.16299072,3341.3,3340.9,0.00397896]
[1641462464020,2.52374012,3341.8,3341.1,0.66162983]
[1641462464223,0.00113685,3341.8,3341.1,0.66162983]
[1641462464420,0.00113685,3341.8,3341.2,0.00227369]
[1641462464623,0.00113685,3341.8,3341.7,18.48939892]
[1641462464875,0.00113685,3341.8,3341.7,18.78939892]
[1641462465168,0.00113685,3341.8,3341.7,1.15939892]
[1641462465370,0.00113685,3341.8,3341.3,2.05296174]
[1641462465571,0.00113685,3341.8,3341.3,17.33]
[1641462465770,0.00113685,3341.8,3341.4,0.00113685]
[1641462466170,0.00113685,3341.8,3341.7,1.11676948]
[1641462466571,0.00113685,3341.8,3341.7,20.13651985]
[1641462466771,0.00113685,3341.8,3341.7,2.80651985]
[1641462467073,2.52260327,3342.5,3342.4,1.22159537]
[1641462467272,2.52260327,3342.5,3342.4,18.55159537]
[1641462467474,2.52260327,3342.5,3342.4,19.26671214]
[1641462467671,2.52260327,3342.5,3342.4,1.93671214]
[1641462467871,1.86769107,3342.6,3342.4,0.00100007]
[1641462468371,1.87223845,3342.6,3342.4,0.00100007]
[1641462469625,0.00454738,3342.6,3342.4,0.00100007]
[1641462469823,0.00050586,3342.6,3342.4,0.00100007]
[1641462470026,0.74882586,3342.6,3342.4,0.00100007]
[1641462471025,1.61861724,3342.5,3342.4,0.00100007]
[1641462475077,1.61861724,3342.5,3341.4,0.00113685]
[1641462475280,0.2474,3341.9,3341.4,0.00113685]
[1641462475579,0.2474,3341.9,3341.3,0.79831555]
[1641462475580,0.74858,3341.7,3341.3,0.79831555]
[1641462475778,0.356,3341.8,3341.3,0.79831555]
[1641462476034,1.84780893,3341.7,3341.4,0.00631522]
[1641462476432,3.10530408,3341.7,3341.4,0.00631522]
[1641462476633,1.74854,3341.6,3341.3,0.00688364]
[1641462477436,14.156,3341.5,3340.0,0.001]
[1641462477632,0.74877,3340.5,3340.2,0.00625266]
[1641462478233,1.49759,3340.5,3340.3,0.00119502]
[1641462478434,4.25230629,3340.4,3340.3,0.00119502]
[1641462479034,7.56275629,3340.4,3340.3,0.00119502]
[1641462479969,6.56275629,3340.4,3340.3,0.00119502]
[1641462480173,4.44509817,3340.4,3340.3,0.00119502]
[1641462480371,2.13464817,3340.4,3340.3,0.00119502]
[1641462481375,2.13464817,3340.4,3340.3,2.19445143]
[1641462481570,1.25749515,3340.7,3340.3,0.30119502]
[1641462481770,5.24280913,3341.1,3340.3,0.00119502]
[1641462481771,2.04608773,3341.1,3340.3,0.00119502]
[1641462481971,2.04608773,3341.1,3340.4,0.00511581]
[1641462482673,1.24972685,3341.5,3340.4,0.00511581]
[1641462482674,1.83539655,3340.5,3340.4,0.00511581]
[1641462483271,1.83539655,3340.5,3340.1,0.79216702]
[1641462483272,1.83539655,3340.5,3340.1,0.77296732]
[1641462483532,0.74885,3340.4,3340.0,0.001]
[1641462483720,0.74885,3340.4,3339.4,3.0437099]
[1641462483721,1.4506,3340.4,3339.4,3.0437099]
[1641462483920,2.18805684,3338.9,3338.7,3.0437099]
[1641462484320,0.356,3340.0,3338.7,3.0437099]
[1641462484520,0.74905,3339.5,3338.7,3.0437099]
[1641462484723,1.49805,3339.5,3338.7,3.0437099]
[1641462484920,1.4981,3339.8,3338.7,3.0437099]
[1641462484921,0.356,3340.0,3339.0,1.36284024]
[1641462485221,0.356,3340.0,3339.1,0.00625266]
[1641462485421,2.08803577,3339.5,3339.1,0.00625266]
[1641462485622,2.08803577,3339.5,3338.8,0.00795793]
[1641462486321,2.08803577,3339.5,3338.7,1.53027923]
[1641462486721,2.08803577,3339.5,3338.8,0.00795793]
[1641462487123,1.21513685,3340.4,3338.8,0.00795793]
[1641462487579,1.21513685,3340.4,3339.3,1.19141738]
[1641462487977,1.21513685,3340.4,3339.4,0.00454739]
[1641462488179,1.21513685,3340.4,3339.9,1.11636846]
[1641462488581,0.85913685,3340.4,3340.0,0.00113685]
[1641462489779,0.85913685,3340.4,3340.2,2.03692713]
[1641462489981,5.85913685,3340.4,3340.2,2.03692713]
[1641462490281,5.85913685,3340.4,3340.2,2.33692713]
[1641462490883,5.85913685,3340.4,3340.0,0.00213685]
[1641462492115,0.01163836,3340.3,3340.0,1.191843]
[1641462493014,0.01163836,3340.3,3340.0,0.00213685]
[1641462494618,1.11643836,3340.3,3340.0,0.00213685]
[1641462494870,2.86527836,3340.3,3340.0,0.00213685]
[1641462495275,1.86527836,3340.3,3340.0,0.00213685]
[1641462496273,1.50927836,3340.3,3340.0,0.00213685]
[1641462496474,0.01163836,3340.3,3340.0,0.00213685]
[1641462499132,0.01163836,3340.3,3340.0,2.97433776]
[1641462499329,0.01163836,3340.3,3340.1,1.49805446]
[1641462499530,0.01163836,3340.3,3340.2,0.3]
[1641462499734,0.01163836,3340.3,3340.1,18.82805446]
[1641462500031,0.01163836,3340.3,3340.1,17.33109956]
[1641462500831,0.01163836,3340.3,3340.2,2.1969536]
[1641462501431,0.01163836,3340.3,3340.1,0.30109956]
[1641462501631,0.01163836,3340.3,3340.1,0.00109956]
[1641462503570,1.01163836,3340.3,3340.1,0.00109956]
[1641462503969,1.01163836,3340.3,3339.3,2.02935891]
[1641462504171,2.10409417,3339.6,3339.3,2.02935891]
[1641462504371,0.74893,3339.8,3339.4,0.00341054]
[1641462504971,1.49889685,3340.2,3339.1,0.00511581]
[1641462505371,2.23108728,3339.8,3339.1,0.00511581]
[1641462505575,2.27704255,3339.7,3339.1,0.00511581]
[1641462506222,2.27704255,3339.7,3339.2,0.65252701]
[1641462506622,2.27704255,3339.7,3339.3,0.00397896]
[1641462506825,11.456,3339.6,3338.9,2.02935891]
[1641462507026,0.74915,3339.0,3338.9,2.02935891]
[1641462507325,0.74915,3339.0,3338.4,2.0298213]
[1641462507326,2.18784092,3339.0,3338.4,2.0298213]
[1641462507724,2.18784092,3339.0,3338.5,0.00454739]
[1641462508129,0.7491,3338.8,3338.5,0.00454739]
[1641462508525,2.18784092,3339.0,3338.3,0.00568423]
[1641462508725,2.18784092,3339.0,3337.5,0.01023162]
[1641462509528,0.74923,3338.2,3337.6,3.047002]
[1641462509777,2.24775,3339.1,3337.6,3.047002]
[1641462509984,1.4984197,3339.3,3337.7,17.33909478]
[1641462510176,2.4984197,3339.3,3337.7,0.00909478]
[1641462510374,2.4984197,3339.3,3337.8,0.00852635]
[1641462510575,2.4984197,3339.3,3337.7,0.00909478]
[1641462510576,0.856,3339.2,3337.7,0.00909478]
[1641462510780,0.856,3339.2,3337.1,3.0437099]
[1641462510781,12.55,3337.5,3336.4,5.07596215]
[1641462510978,0.01291086,3336.5,3336.4,5.07596215]
[1641462511176,0.69371086,3336.5,3336.4,5.07596215]
[1641462511375,0.09371086,3336.5,3336.4,5.07596215]
[1641462511578,0.09371086,3336.5,3336.4,5.03596215]
[1641462511776,1.59310086,3336.5,3336.1,5.07837908]
[1641462512280,1.59310086,3336.5,3335.6,6.76699986]
[1641462512281,0.356,3336.4,3335.6,6.76699986]
[1641462512477,0.356,3336.4,3335.6,4.14109986]
[1641462512478,0.74989,3335.7,3335.6,4.14109986]
[1641462512678,1.99609,3335.7,3335.1,7.95817667]
[1641462512977,2.02738619,3335.3,3335.2,0.00568423]
[1641462513175,0.356,3335.3,3335.2,0.00568423]
[1641462513828,0.356,3335.3,3334.8,0.00795793]
[1641462514029,1.7659558,3335.1,3334.8,0.00795793]
[1641462514328,2.1219558,3335.1,3334.5,0.0096632]
[1641462514738,2.1219558,3335.1,3334.0,0.01250531]
[1641462515130,2.1219558,3335.1,3334.1,1.14249544]
[1641462515530,0.356,3335.1,3334.3,2.15992044]
[1641462515732,0.356,3335.1,3334.8,1.2764511]
[1641462515937,1.85612,3335.1,3334.4,0.01023162]
[1641462516137,1.85612,3335.1,3334.9,0.0073895]
[1641462516331,1.85612,3335.1,3334.0,0.01250531]
[1641462517035,1.93211858,3334.9,3334.6,1.23571721]
[1641462517304,0.356,3334.8,3334.2,2.14185055]
[1641462517491,0.356,3334.8,3334.7,0.00852635]
[1641462517696,0.356,3334.8,3334.3,0.01080004]
[1641462517890,0.36765807,3334.8,3334.3,0.01080004]
[1641462518891,0.75013,3334.7,3334.3,0.01080004]
[1641462519092,0.356,3334.6,3333.7,0.01421058]
[1641462519293,0.76177807,3334.8,3333.7,0.01421058]
[1641462519294,0.01165807,3334.8,3334.4,0.01234136]
[1641462519693,0.01165807,3334.8,3334.5,1.67953457]
[1641462520093,0.01165807,3334.8,3334.6,17.33909477]
[1641462520292,0.01165807,3334.8,3334.7,10.50531203]
[1641462520493,0.01165807,3334.8,3334.7,1.71383838]
[1641462520894,0.01165807,3334.8,3334.7,18.74548445]
[1641462521124,5.807e-05,3334.8,3334.7,19.04548445]
[1641462521337,0.8902,3335.7,3334.8,13.3]
[1641462521338,0.49505807,3335.7,3334.8,13.3]
[1641462521527,0.1976,3335.8,3334.8,13.3]
[1641462521528,1.25749515,3335.9,3335.6,9.8]
[1641462521723,1.25749515,3335.9,3335.5,0.01280437]
[1641462521926,1.25749515,3335.9,3335.7,0.00284211]
[1641462522124,0.00113685,3336.4,3335.6,0.00341054]
[1641462522324,0.00113685,3336.4,3336.2,1.05322057]
[1641462522523,0.00113685,3336.4,3336.2,1.35322057]
[1641462522726,0.00113685,3336.4,3336.2,2.35322057]
[1641462522922,0.00113685,3336.4,3336.3,17.33]
[1641462524877,0.00113685,3336.4,3335.6,0.00341054]
[1641462525170,0.00113685,3336.4,3335.5,0.00397896]
[1641462525372,0.00113685,3336.4,3335.4,12.33397896]
[1641462525571,0.00454739,3336.3,3335.4,12.63397896]
[1641462525770,0.00454739,3336.3,3335.5,12.33397896]
[1641462525970,0.00397896,3336.2,3335.6,1.01428666]
[1641462526170,0.00397896,3336.2,3335.7,12.33397896]
[1641462526372,0.00341054,3336.1,3335.7,12.33397896]
[1641462526671,1.25749515,3336.7,3336.0,15.57334495]
[1641462526873,0.24021285,3336.9,3336.2,25.63397896]
[1641462527071,2.46011426,3337.2,3336.3,13.3]
[1641462527273,3.27975363,3337.4,3336.4,12.33397896]
[1641462527473,4.14666784,3338.1,3337.3,14.50376352]
[1641462527672,4.14666784,3338.1,3337.5,12.33397896]
[1641462527876,4.14666784,3338.1,3337.5,12.63397896]
[1641462528530,2.46011426,3338.5,3337.5,12.63397896]
[1641462528732,2.46011426,3338.5,3337.4,1.42177386]
[1641462528934,2.00404956,3338.2,3337.4,1.42177386]
[1641462529134,0.00397897,3337.5,3337.4,1.37785896]
[1641462529331,0.00397897,3337.5,3337.3,2.16978456]
[1641462529533,0.00397897,3337.5,3336.5,1.00170527]
[1641462529732,0.74927,3338.6,3336.5,1.00170527]
[1641462529733,0.00341054,3337.4,3336.5,1.00170527]
[1641462529933,0.00341054,3337.4,3336.6,17.33113684]
[1641462530133,5.88941309,3338.4,3336.6,17.33113684]
[1641462530134,0.00284212,3337.3,3336.6,17.33113684]
[1641462530333,0.00284212,3337.3,3336.6,17.63113684]
[1641462530533,0.0022737,3337.2,3337.1,0.3]
[1641462530734,0.0022737,3337.2,3336.6,0.00113684]
[1641462531133,0.0022737,3337.2,3336.2,0.03388256]
[1641462531134,0.00170527,3337.1,3336.3,0.00284211]
[1641462531539,0.00113685,3337.0,3336.3,0.00284211]
[1641462531735,0.00113685,3337.0,3336.7,0.00132409]
[1641462531933,1.9258474,3337.3,3336.7,0.00132409]
[1641462531934,0.0022737,3337.2,3336.7,0.00132409]
[1641462532134,0.74953,3336.9,3336.7,0.00132409]
[1641462532972,0.74949,3337.0,3336.7,0.00132409]
[1641462533571,0.64949,3337.0,3336.3,1.15722699]
[1641462533972,0.64949,3337.0,3336.5,19.09534817]
[1641462534175,0.00170527,3337.1,3336.9,1.14726961]
[1641462534672,0.00113685,3337.0,3336.9,18.77726961]
[1641462534974,0.00113685,3337.0,3336.9,1.14726961]
[1641462535172,0.00113685,3337.0,3336.9,18.47726961]
[1641462535872,0.00113685,3337.0,3336.9,18.77726961]
[1641462536454,0.00113685,3337.0,3336.6,0.00113684]
[1641462537555,0.00113685,3337.0,3336.6,17.33113684]
[1641462537854,0.00113685,3337.0,3336.8,17.33]
[1641462538057,0.00113685,3337.0,3336.7,1.07717101]
[1641462538756,0.00113685,3337.0,3336.8,17.33]
[1641462539558,1.67163771,3336.8,3336.7,1.37717101]
[1641462539770,1.67163771,3336.8,3336.5,19.09534817]
[1641462539974,1.67163771,3336.8,3335.6,0.03681711]
[1641462540174,1.67277456,3336.8,3335.8,7.03671718]
[1641462540572,1.67277456,3336.8,3335.9,1.03992285]
[1641462540772,1.67277456,3336.8,3336.6,1.23661509]
[1641462540773,0.00113685,3336.8,3336.6,1.23661509]
[1641462540971,0.00113685,3336.8,3336.7,17.33]
[1641462541174,0.00113685,3336.8,3336.7,19.87775005]
[1641462541576,3.685e-05,3336.8,3336.7,19.87775005]
[1641462541774,2.46011426,3337.2,3336.8,13.3]
[1641462541973,2.73972981,3337.6,3337.0,30.66065378]
[1641462542179,5.46625605,3338.4,3337.3,17.36781631]
[1641462542370,5.46625605,3338.4,3337.5,13.3]
[1641462542572,5.46625605,3338.7,3338.2,5.85]
[1641462542773,5.46625605,3338.7,3338.2,17.33]
[1641462542971,0.00909477,3338.4,3338.2,17.63]
[1641462543274,0.00852635,3338.3,3338.2,17.66127712]
[1641462543522,0.00852635,3338.3,3338.2,19.80660771]
[1641462543724,0.02017131,3338.3,3338.2,19.80660771]
[1641462543926,0.02017131,3338.3,3338.2,17.66516979]
[1641462543927,7.131e-05,3338.3,3338.2,17.66516979]
[1641462544124,0.72874829,3339.7,3338.3,8.1]
[1641462544324,0.72874829,3339.7,3338.4,17.33]
[1641462544528,0.0073895,3339.6,3338.4,17.63]
[1641462544925,0.00682108,3339.5,3339.2,2.16761431]
[1641462545126,0.7489,3339.4,3338.5,17.33]
[1641462545325,0.75515265,3339.4,3338.5,17.33]
[1641462545525,0.00568423,3339.3,3338.5,17.33]
[1641462545925,0.00511581,3339.2,3338.5,17.33]
[1641462546126,0.00511581,3339.2,3339.1,19.1311713]
[1641462546325,0.74883,3339.7,3339.1,1.8011713]
[1641462546727,0.0073895,3339.6,3339.1,1.8011713]
[1641462546927,0.0073895,3339.6,3337.2,8.596]
[1641462546928,1.5052095,3339.6,3337.2,8.596]
[1641462547129,0.74908,3338.6,3337.7,4.978]
[1641462547388,0.7491,3338.5,3337.8,0.00284212]
[1641462547585,0.75023684,3338.5,3337.8,0.00284212]
[1641462547786,0.75023684,3338.5,3337.2,3.50625266]
[1641462547984,0.75023684,3338.5,3338.3,1.79386229]
[1641462548185,0.00113684,3338.5,3338.3,1.79386229]
[1641462549682,0.00113684,3338.5,3338.2,2.25830293]
[1641462551123,0.00113684,3338.5,3337.9,1.37639276]
[1641462551325,0.00113684,3338.5,3337.3,0.00568424]
[1641462551523,0.00113684,3338.5,3337.1,0.03388005]
[1641462551524,0.00113684,3338.5,3338.0,0.00170527]
[1641462551723,0.00113684,3338.5,3337.2,0.00625266]
[1641462552323,0.00113684,3338.5,3337.7,1.08988941]
[1641462552530,0.00113684,3338.5,3338.0,17.33]
[1641462552727,1.49932684,3338.5,3338.0,17.33]
[1641462552925,1.49932684,3338.5,3338.1,0.00113685]
[1641462553326,1.49932684,3338.5,3338.1,0.00211179]
[1641462554126,1.49932684,3338.5,3337.1,0.03388005]
[1641462554127,1.4987,3338.1,3337.1,0.03388005]
[1641462554327,13.3,3338.4,3337.1,0.03388005]
[1641462554328,0.74939,3337.2,3337.1,0.03388005]
[1641462555283,0.74939,3337.2,3336.7,4.17961566]
[1641462555481,0.7495,3336.8,3336.7,2.14811071]
[1641462556181,0.7495,3336.8,3336.5,0.03388353]
[1641462556583,8.99915,3336.6,3336.5,0.03388353]
[1641462556784,0.74957,3336.7,3335.2,2.03150495]
[1641462556980,0.74973,3335.5,3335.2,2.03150495]
[1641462557182,0.74973,3335.5,3335.3,3.25109477]
[1641462557482,0.74974,3335.7,3335.4,0.01534743]
[1641462557684,1.26032443,3336.4,3335.4,17.34534743]
[1641462557685,0.7496729,3336.1,3335.4,17.34534743]
[1641462557881,1.26032443,3336.4,3335.4,17.34534743]
[1641462558080,1.26032443,3336.4,3335.4,17.28477901]
[1641462558525,0.00454739,3336.3,3335.4,0.3]
[1641462558724,0.00454739,3336.3,3335.3,1.36898203]
[1641462558725,0.74967,3336.2,3335.3,1.36898203]
[1641462558930,0.74964,3335.9,3335.6,1.40098547]
[1641462559326,0.00170527,3335.8,3335.5,0.38471215]
[1641462559528,1.50124527,3335.8,3335.5,0.38471215]
[1641462559726,0.00113685,3335.7,3335.5,0.38471215]
[1641462559926,0.00113685,3335.7,3335.0,0.001]
[1641462560132,0.74983,3335.3,3335.0,0.001]
[1641462560334,0.74984,3335.2,3335.1,0.0022737]
[1641462561129,1.4997149,3335.2,3335.1,0.0022737]
[1641462561528,0.74984,3335.2,3335.1,0.0022737]
[1641462561728,2.53102915,3335.2,3335.1,0.0022737]
[1641462562131,5.02252381,3335.2,3335.1,0.0022737]
[1641462562976,5.02252381,3335.2,3335.0,0.001]
[1641462563375,3.45,3335.1,3334.5,0.03388897]
[1641462563576,0.75004,3334.9,3334.5,0.03388897]
[1641462563776,0.75004,3334.8,3334.6,0.00284211]
[1641462564176,1.84458413,3334.4,3333.8,1.00139502]
[1641462564378,1.84458413,3334.4,3333.8,0.968869]
[1641462564574,8.49190466,3335.1,3333.9,0.00397897]
[1641462564575,11.94000653,3335.1,3333.9,0.00397897]
[1641462564777,3.00019,3334.5,3333.9,0.00397897]
[1641462564975,3.00019,3334.5,3333.8,0.00454739]
[1641462564976,0.356,3334.4,3333.8,0.00454739]
[1641462565175,0.356,3334.4,3333.3,0.00682603]
[1641462565176,8.2,3334.3,3333.3,0.00682603]
[1641462565377,1.10634,3334.2,3333.3,0.00682603]
[1641462565579,2.11088738,3334.2,3333.1,4.62002203]
[1641462565879,0.75433896,3334.1,3333.8,1.57256383]
[1641462566131,0.356,3334.0,3333.8,1.57256383]
[1641462566331,0.35941054,3334.0,3333.8,6.383e-05]
[1641462566533,0.75034,3333.8,3333.2,3.04859505]
[1641462566729,0.356,3333.7,3333.2,0.00113685]
[1641462566932,0.35770527,3333.7,3333.2,0.00113685]
[1641462567132,0.00113684,3333.6,3333.1,0.00170527]
[1641462567330,0.00113684,3333.6,3333.2,3.56120936]
[1641462567730,0.00113684,3333.6,3333.2,4.83724701]
[1641462567933,3.684e-05,3333.6,3333.3,1.41113765]
[1641462568134,3.684e-05,3333.6,3333.3,1.41280608]
[1641462568331,3.684e-05,3333.6,3333.4,17.38623765]
[1641462568531,3.684e-05,3333.6,3333.5,21.956]
[1641462568933,3.684e-05,3333.6,3333.5,39.286]
[1641462569132,3.684e-05,3333.6,3333.5,25.986]
[1641462569333,3.684e-05,3333.6,3333.5,24.33]
[1641462569531,3.684e-05,3333.6,3333.5,7.0]
[1641462570572,3.684e-05,3333.6,3333.5,24.33]
[1641462570774,3.684e-05,3333.6,3333.5,24.63]
[1641462571273,3.684e-05,3333.6,3333.5,17.63]
[1641462571473,0.2725,3334.8,3333.7,17.33]
[1641462571474,0.19232491,3334.8,3333.7,17.33]
[1641462571672,0.05422491,3334.8,3333.9,17.34254546]
[1641462571873,0.05422491,3334.8,3334.1,17.33]
[1641462572175,2.44693869,3334.7,3334.6,7.21289913]
[1641462572472,2.44693869,3334.7,3334.6,18.50330088]
[1641462572673,0.00170527,3335.0,3334.6,18.50330088]
[1641462573073,0.00113685,3334.9,3334.6,18.50330088]
[1641462573275,0.00113685,3334.9,3334.7,0.3]
[1641462573523,0.75819635,3336.2,3334.6,18.49040175]
[1641462573724,2.2373492,3336.0,3334.7,0.3]
[1641462574024,0.74976,3335.8,3334.8,17.63]
[1641462574225,0.74976,3335.8,3334.9,17.33]
[1641462574426,0.00568424,3335.7,3334.9,17.33]
[1641462574826,0.00511581,3335.6,3335.5,1.28301985]
[1641462575027,0.00511581,3335.6,3335.5,18.61301985]
[1641462575427,0.00511581,3335.6,3335.5,1.28301985]
[1641462576426,0.00511581,3335.6,3335.4,0.3]
[1641462576628,0.00511581,3335.6,3334.8,0.00114801]
[1641462576830,0.00454739,3335.5,3334.8,17.33]
[1641462577282,2.25794267,3335.4,3334.8,17.33]
[1641462577476,2.25794267,3335.4,3334.5,3.5]
[1641462577677,2.25794267,3335.4,3334.8,1.16249618]
[1641462577678,0.00341054,3335.3,3334.8,1.16249618]
[1641462578077,0.00284212,3335.2,3334.8,1.16249618]
[1641462578379,0.00227369,3335.1,3334.8,0.3]
[1641462578580,0.00227369,3335.1,3334.7,0.3]
[1641462578775,2.2539637,3335.4,3334.5,3.5]
[1641462578776,0.00341054,3335.3,3334.5,3.5]
[1641462578976,0.00341054,3335.3,3334.6,17.33]
[1641462579176,2.2539637,3335.4,3334.6,17.33]
[1641462579177,0.00284212,3335.2,3334.6,17.33]
[1641462579377,0.00284212,3335.2,3334.9,1.40347076]
[1641462579578,0.00227369,3335.1,3334.9,1.40347076]
[1641462579978,0.00341054,3335.3,3334.0,3.13673611]
[1641462580278,2.2539637,3335.4,3333.7,8.24416479]
[1641462580279,0.00284212,3335.2,3334.2,7.0]
[1641462580681,0.00227369,3335.1,3334.3,0.00227369]
[1641462581122,0.00341054,3335.3,3334.3,17.33227369]
[1641462581326,0.00341054,3335.3,3334.7,1.266752]
[1641462581521,2.2539637,3335.4,3334.7,1.566752]
[1641462581522,0.00284212,3335.2,3334.7,1.566752]
[1641462581922,0.00227369,3335.1,3334.7,1.566752]
[1641462582322,0.00341054,3335.3,3334.7,1.566752]
[1641462582524,0.00341054,3335.3,3334.7,18.896752]
[1641462582724,5.0,3336.3,3334.7,18.896752]
[1641462582725,5.0,3336.3,3335.2,0.01210859]
[1641462582923,5.0,3336.3,3335.7,1.3005793]
[1641462583125,5.0,3336.3,3335.8,17.33]
[1641462583528,2.1062802,3336.2,3335.9,1.0]
[1641462583725,2.1062802,3336.2,3335.7,17.63]
[1641462583924,0.00511581,3336.1,3335.7,17.33]
[1641462584123,0.00511581,3336.1,3334.8,0.0022737]
[1641462584327,0.00454739,3336.0,3334.8,3.5022737]
[1641462584772,0.00397896,3335.9,3335.2,1.27562336]
[1641462585173,0.00341054,3335.8,3335.3,17.33]
[1641462585372,0.00341054,3335.8,3335.3,12.33]
[1641462585673,0.00284212,3335.7,3335.2,1.57562336]
[1641462585873,0.00284212,3335.7,3335.2,20.52103163]
[1641462586075,2.27030038,3336.0,3335.2,20.52103163]
[1641462586076,0.00227369,3335.6,3335.2,20.52103163]
[1641462586472,0.00170527,3335.5,3335.2,20.52103163]
[1641462586876,0.00113685,3335.4,3335.2,20.52103163]
[1641462587078,0.00113685,3335.4,3335.2,3.19103163]
[1641462587272,0.00397896,3335.9,3335.2,20.52103163]
[1641462587673,0.00341054,3335.8,3335.2,20.52103163]
[1641462587873,0.00341054,3335.8,3335.4,17.33]
[1641462588071,1.26032443,3336.4,3335.4,17.33]
[1641462588072,0.00284212,3335.7,3335.4,17.33]
[1641462588273,0.00284212,3335.7,3335.2,20.52103163]
[1641462588540,0.00227369,3335.6,3335.4,0.3]
[1641462588745,0.3,3335.4,3334.9,0.00271819]
[1641462589146,0.3,3335.4,3335.0,0.00113685]
[1641462589740,0.3,3335.4,3335.1,3.04703513]
[1641462590143,0.3,3335.4,3335.2,17.33]
[1641462591540,0.3,3335.4,3335.2,17.36443261]
[1641462591739,0.00170527,3335.5,3335.4,13.2434]
[1641462591940,1.26032443,3336.1,3335.4,30.97156318]
[1641462592284,0.00284212,3336.0,3335.4,0.3]
[1641462592489,0.00284212,3336.0,3335.0,0.00113685]
[1641462592679,0.00227369,3335.9,3335.0,0.00113685]